fUSD/lending_fUSD_20250525
["ID","MTS","AMOUNT","RATE_DAILY","PERIOD"]
[362318586,1748189432489,-618.86256933,0.00019898,2]
[362318587,1748189432498,-618.86256933,0.00019898,2]
[362318588,1748189432508,-618.86256933,0.00019899,2]
[362318589,1748189432517,-618.86256933,0.00019899,2]
[362318590,1748189432526,-618.86256933,0.000199,2]
[362318591,1748189432535,-618.86256933,0.000199,2]
[362318592,1748189432545,-205.8416101,0.000199,2]
[362318593,1748189432554,-496.13,0.00019974,2]
[362318594,1748189432563,-497.28,0.00019974,2]
[362318595,1748189432572,-508.22,0.00019974,2]
[362318596,1748189432583,-496.54,0.00019974,2]
[362318597,1748189432595,-493.35,0.00019974,2]
[362318599,1748189432605,-493.2,0.00019974,2]
[362318601,1748189432615,-499.95,0.00019974,2]
[362318603,1748189432629,-496.45,0.00019974,2]
[362318605,1748189432638,-495.24,0.00019974,2]
[362318607,1748189432648,-495.19,0.00019974,2]
[362318609,1748189432657,-493.76,0.00019974,2]
[362318611,1748189432668,-480.864,0.00019988,2]
[362318613,1748189432677,-420.0,0.00019989,2]
[362318615,1748189432687,-342.11850245,0.00019989,2]
[362318618,1748189432704,-420.0,0.00019989,2]
[362318620,1748189432716,-420.0,0.00019989,2]
[362318622,1748189432726,-420.0,0.00019989,2]
[362318624,1748189432735,-420.0,0.00019989,2]
[362318626,1748189432745,-427.208372,0.00019989,2]
[362318628,1748189432754,-420.0,0.00019989,2]
[362318630,1748189432764,-420.0,0.00019989,2]
[362318632,1748189432774,-420.0,0.00019989,2]
[362318634,1748189432784,-164.5055476,0.00019989,2]
[362318636,1748189432793,-420.0,0.00019989,2]
[362318638,1748189432802,-420.0,0.00019989,2]
[362318640,1748189432812,-420.0,0.00019989,2]
[362318642,1748189432822,-420.0,0.00019989,2]
[362318644,1748189432831,-420.0,0.00019989,2]
[362318646,1748189432841,-420.0,0.00019989,2]
[362318648,1748189432851,-420.0,0.00019989,2]
[362318650,1748189432860,-420.0,0.00019989,2]
[362318652,1748189432870,-422.83226318,0.00019989,2]
[362318654,1748189432879,-422.81195095,0.00019989,2]
[362318656,1748189432889,-420.0,0.00019989,2]
[362318658,1748189432899,-420.0,0.00019989,2]
[362318660,1748189432908,-430.23574783,0.00019989,2]
[362318662,1748189432919,-430.77441596,0.00019989,2]
[362318664,1748189432929,-425.60908854,0.00019989,2]
[362318666,1748189432940,-420.0,0.00019989,2]
[362318668,1748189432949,-420.0,0.00019989,2]
[362318670,1748189432959,-432.45549521,0.00019989,2]
[362318672,1748189432969,-421.58862683,0.00019989,2]
[362318674,1748189432979,-420.0,0.00019989,2]
[362318676,1748189432990,-491.34480825,0.00019989,2]
[362318678,1748189432999,-423.13657766,0.00019989,2]
[362318680,1748189433011,-420.0,0.00019989,2]
[362318683,1748189433022,-422.30243761,0.00019989,2]
[362318685,1748189433031,-420.0,0.00019989,2]
[362318687,1748189433041,-420.0,0.00019989,2]
[362318689,1748189433051,-420.0,0.00019989,2]
[362318690,1748189433060,-420.0,0.00019989,2]
[362318692,1748189433070,-420.0,0.00019989,2]
[362318694,1748189433079,-420.0,0.00019989,2]
[362318696,1748189433089,-420.0,0.00019989,2]
[362318698,1748189433098,-420.22433353,0.00019989,2]
[362318700,1748189433108,-420.0,0.00019989,2]
[362318702,1748189433118,-432.66554135,0.00019989,2]
[362318704,1748189433128,-431.22738514,0.00019989,2]
[362318706,1748189433138,-420.0,0.00019989,2]
[362318708,1748189433149,-420.0,0.00019989,2]
[362318710,1748189433161,-420.0,0.00019989,2]
[362318712,1748189433171,-437.90878237,0.00019989,2]
[362318714,1748189433181,-449.48695921,0.00019989,2]
[362318716,1748189433191,-420.0,0.00019989,2]
[362318718,1748189433201,-435.49340675,0.00019989,2]
[362318720,1748189433210,-420.0,0.00019989,2]
[362318722,1748189433220,-420.0,0.00019989,2]
[362318724,1748189433230,-530.53,0.00019989,2]
[362318726,1748189433240,-420.0,0.00019989,2]
[362318728,1748189433250,-420.0,0.00019989,2]
[362318730,1748189433260,-420.0,0.00019989,2]
[362318732,1748189433270,-452.03090677,0.00019989,2]
[362318734,1748189433280,-401.89629625,0.00019989,2]
[362318736,1748189433289,-420.0,0.00019989,2]
[362318738,1748189433299,-420.0,0.00019989,2]
[362318740,1748189433309,-420.0,0.00019989,2]
[362318742,1748189433318,-420.0,0.00019989,2]
[362318744,1748189433328,-420.0,0.00019989,2]
[362318746,1748189433338,-420.0,0.00019989,2]
[362318748,1748189433347,-420.0,0.00019989,2]
[362318750,1748189433357,-420.0,0.00019989,2]
[362318752,1748189433366,-441.16224627,0.00019989,2]
[362318754,1748189433376,-420.0,0.00019989,2]
[362318756,1748189433386,-420.0,0.00019989,2]
[362318758,1748189433395,-420.0,0.00019989,2]
[362318760,1748189433405,-420.0,0.00019989,2]
[362318762,1748189433415,-420.0,0.00019989,2]
[362318764,1748189433424,-420.0,0.00019989,2]
[362318766,1748189433434,-420.0,0.00019989,2]
[362318768,1748189433443,-420.0,0.00019989,2]
[362318770,1748189433453,-289.17175589,0.00019989,2]
[362318772,1748189433463,-420.0,0.00019995,2]
[362318774,1748189433473,-420.0,0.00019995,2]
[362318776,1748189433482,-420.0,0.00019995,2]
[362318778,1748189433492,-420.0,0.00019995,2]
[362318780,1748189433501,-420.0,0.00019995,2]
[362318782,1748189433511,-445.3603311,0.00019995,2]
[362318784,1748189433520,-420.0,0.00019995,2]
[362318786,1748189433530,-420.0,0.00019995,2]
[362318787,1748189433539,-428.70463219,0.00019995,2]
[362318790,1748189433549,-420.0,0.00019995,2]
[362318792,1748189433559,-453.13465936,0.00019995,2]
[362318793,1748189433568,-420.0,0.00019995,2]
[362318795,1748189433577,-420.0,0.00019995,2]
[362318797,1748189433587,-424.93319835,0.00019995,2]
[362318799,1748189433596,-420.0,0.00019995,2]
[362318801,1748189433606,-420.0,0.00019995,2]
[362318803,1748189433616,-420.0,0.00019995,2]
[362318806,1748189433630,-425.86251648,0.00019995,2]
[362318807,1748189433639,-420.0,0.00019995,2]
[362318809,1748189433648,-437.58232441,0.00019995,2]
[362318811,1748189433658,-448.80117356,0.00019995,2]
[362318813,1748189433668,-456.59411195,0.00019995,2]
[362318815,1748189433677,-438.84047908,0.00019995,2]
[362318817,1748189433687,-432.89150376,0.00019995,2]
[362318819,1748189433696,-420.0,0.00019995,2]
[362318821,1748189433706,-455.03092486,0.00019995,2]
[362318823,1748189433715,-500.0,0.00019995,2]
[362318825,1748189433725,-430.99088406,0.00019995,2]
[362318827,1748189433735,-500.0,0.00019995,2]
[362318829,1748189433744,-500.0,0.00019995,2]
[362318831,1748189433754,-500.0,0.00019995,2]
[362318833,1748189433763,-500.0,0.00019995,2]
[362318835,1748189433773,-500.0,0.00019995,2]
[362318837,1748189433783,-500.0,0.00019995,2]
[362318839,1748189433793,-500.0,0.00019995,2]
[362318841,1748189433803,-500.0,0.00019995,2]
[362318843,1748189433813,-265.15211038,0.00019995,2]
[362318845,1748189433822,-500.0,0.00019995,2]
[362318847,1748189433832,-500.0,0.00019995,2]
[362318849,1748189433842,-46.76861979,0.00019995,2]
[362318851,1748189433857,-453.23138021,0.00019995,2]
[362318853,1748189433867,-500.0,0.00019995,2]
[362318855,1748189433876,-30.43929326,0.00019995,2]
[362319263,1748189437958,-300.0,0.00019988,2]
[362319265,1748189437970,-188.66430191,0.00019995,2]
[362319273,1748189438034,-180.89640483,0.00019995,2]
[362319275,1748189438043,-420.0,0.00019995,2]
[362319277,1748189438053,-420.0,0.00019995,2]
[362319279,1748189438062,-158.8002,0.00019995,2]
[362319281,1748189438072,-421.58123016,0.00019995,2]
[362319283,1748189438080,-420.0,0.00019995,2]
[362319285,1748189438089,-331.620622,0.00019995,2]
[362319287,1748189438098,-440.01987102,0.00019995,2]
[362319288,1748189438107,-420.0,0.00019995,2]
[362319290,1748189438115,-152.925139,0.00019995,2]
[362319292,1748189438124,-420.0,0.00019995,2]
[362319294,1748189438133,-258.95523862,0.00019995,2]
[362319297,1748189438145,-161.04476138,0.00019995,2]
[362319299,1748189438154,-382.60570115,0.00019995,2]
[362319301,1748189438169,-37.39429885,0.00019995,2]
[362319303,1748189438179,-420.0,0.00019995,2]
[362319305,1748189438188,-420.0,0.00019995,2]
[362319307,1748189438197,-500.0,0.00019995,2]
[362319309,1748189438206,-431.39206111,0.00019995,2]
[362319311,1748189438215,-420.0,0.00019995,2]
[362319313,1748189438224,-420.0,0.00019995,2]
[362319315,1748189438233,-420.0,0.00019995,2]
[362319317,1748189438242,-31.21364004,0.00019995,2]
[362319472,1748189439778,-388.78635996,0.00019995,2]
[362319473,1748189439787,-420.0,0.00019995,2]
[362319474,1748189439797,-545.68467909,0.00019995,2]
[362319475,1748189439806,-420.0,0.00019995,2]
[362319476,1748189439816,-438.73730242,0.00019995,2]
[362319477,1748189439825,-555.50266751,0.00019995,2]
[362319478,1748189439836,-200.16132931,0.00019995,2]
[362319479,1748189440124,-240.85125809,0.00019995,2]
[362319480,1748189440134,-420.0,0.00019995,2]
[362319481,1748189440143,-420.0,0.00019995,2]
[362319482,1748189440153,-420.0,0.00019995,2]
[362319483,1748189440163,-420.0,0.00019995,2]
[362319484,1748189440173,-420.0,0.00019995,2]
[362319485,1748189440182,-420.0,0.00019995,2]
[362319486,1748189440191,-420.0,0.00019995,2]
[362319487,1748189440200,-420.0,0.00019995,2]
[362319488,1748189440209,-420.0,0.00019995,2]
[362319489,1748189440219,-420.0,0.00019995,2]
[362319490,1748189440228,-431.32079306,0.00019995,2]
[362319491,1748189440237,-420.0,0.00019995,2]
[362319492,1748189440247,-420.0,0.00019995,2]
[362319493,1748189440256,-420.0,0.00019995,2]
[362319494,1748189440267,-420.0,0.00019995,2]
[362319495,1748189440276,-420.0,0.00019995,2]
[362319496,1748189440286,-420.0,0.00019995,2]
[362319497,1748189440296,-420.0,0.00019995,2]
[362319498,1748189440305,-420.27777015,0.00019995,2]
[362319499,1748189440315,-431.64563872,0.00019995,2]
[362319500,1748189440325,-3483.0341233,0.00019996,2]
[362319501,1748189440334,-277.45798598,0.00019996,2]
[362319502,1748189440346,-921.64248342,0.00019996,2]
[362319503,1748189440495,-1961.48164865,0.00019996,2]
[362319534,1748189445555,-420.0,0.00019995,2]
[362319535,1748189445564,-941.92116304,0.00019996,2]
[362319536,1748189445612,-2172.91492049,0.00019996,2]
[362319537,1748189445623,-1205.09999248,0.00019996,2]
[362319538,1748189445634,-5229.0,0.00019996,2]
[362319539,1748189445646,-152.15233284,0.00019996,2]
[362319540,1748189445655,-8851.6231823,0.00019996,2]
[362319541,1748189445668,-1594.149988,0.00019996,2]
[362319542,1748189445680,-95232.8325632,0.00019996,2]
[362319543,1748189445689,-425.57095696,0.00019998,2]
[362319544,1748189445700,-446.1448764,0.00019998,2]
[362319545,1748189445709,-420.0,0.00019998,2]
[362319546,1748189445719,-420.0,0.00019998,2]
[362319547,1748189445728,-420.0,0.00019998,2]
[362319548,1748189445738,-250.0,0.00019998,2]
[362319549,1748189445748,-420.0,0.00019998,2]
[362319550,1748189445757,-420.0,0.00019998,2]
[362319551,1748189445766,-420.0,0.00019998,2]
[362319552,1748189445776,-420.0,0.00019998,2]
[362319553,1748189445785,-420.0,0.00019998,2]
[362319554,1748189445795,-343.97,0.00019998,2]
[362319555,1748189445804,-420.0,0.00019998,2]
[362319556,1748189445813,-420.0,0.00019998,2]
[362319557,1748189445823,-420.0,0.00019998,2]
[362319558,1748189445832,-420.0,0.00019998,2]
[362319559,1748189445842,-420.0,0.00019998,2]
[362319560,1748189445852,-420.0,0.00019998,2]
[362319561,1748189445861,-420.0,0.00019998,2]
[362319562,1748189445871,-420.0,0.00019998,2]
[362319563,1748189445880,-420.0,0.00019998,2]
[362319564,1748189445891,-420.0,0.00019998,2]
[362319565,1748189445901,-430.92917457,0.00019998,2]
[362319566,1748189445911,-499.54910502,0.00019998,2]
[362319567,1748189445920,-459.15029371,0.00019998,2]
[362319568,1748189445929,-420.0,0.00019998,2]
[362319569,1748189445939,-420.0,0.00019998,2]
[362319570,1748189445948,-420.0,0.00019998,2]
[362319572,1748189445958,-411.36613924,0.00019998,2]
[362319574,1748189445967,-420.0,0.00019998,2]
[362319575,1748189445977,-426.57214252,0.00019998,2]
[362319577,1748189445986,-420.0,0.00019998,2]
[362319579,1748189445996,-432.08224906,0.00019998,2]
[362319581,1748189446005,-439.17596652,0.00019998,2]
[362319583,1748189446014,-420.0,0.00019998,2]
[362319585,1748189446024,-420.0,0.00019998,2]
[362319587,1748189446033,-420.0,0.00019998,2]
[362319589,1748189446043,-420.0,0.00019998,2]
[362319590,1748189446052,-420.0,0.00019998,2]
[362319592,1748189446061,-434.97015936,0.00019998,2]
[362319594,1748189446071,-420.0,0.00019998,2]
[362319596,1748189446080,-438.1073089,0.00019998,2]
[362319598,1748189446089,-448.15845063,0.00019998,2]
[362319600,1748189446098,-420.0,0.00019998,2]
[362319602,1748189446107,-420.0,0.00019998,2]
[362319604,1748189446117,-420.0,0.00019998,2]
[362319606,1748189446127,-420.0,0.00019998,2]
[362319608,1748189446137,-420.0,0.00019998,2]
[362319610,1748189446147,-434.19007147,0.00019998,2]
[362319612,1748189446159,-420.0,0.00019998,2]
[362319614,1748189446168,-433.5432902,0.00019998,2]
[362319616,1748189446178,-420.0,0.00019998,2]
[362319617,1748189446187,-420.0,0.00019998,2]
[362319619,1748189446197,-420.0,0.00019998,2]
[362319621,1748189446206,-420.0,0.00019998,2]
[362319623,1748189446215,-420.0,0.00019998,2]
[362319625,1748189446224,-420.0,0.00019998,2]
[362319627,1748189446233,-420.0,0.00019998,2]
[362319629,1748189446243,-434.14528598,0.00019998,2]
[362319631,1748189446253,-420.0,0.00019998,2]
[362319633,1748189446262,-420.0,0.00019998,2]
[362319635,1748189446272,-420.0,0.00019998,2]
[362319636,1748189446282,-420.0,0.00019998,2]
[362319638,1748189446291,-420.0,0.00019998,2]
[362319640,1748189446300,-420.0,0.00019998,2]
[362319642,1748189446309,-424.09451282,0.00019998,2]
[362319644,1748189446318,-420.0,0.00019998,2]
[362319646,1748189446327,-420.0,0.00019998,2]
[362319666,1748189446524,-420.0,0.00019998,2]
[362319667,1748189446534,-367.24079387,0.00019998,2]
[362319668,1748189446544,-420.0,0.00019998,2]
[362319670,1748189446554,-420.0,0.00019998,2]
[362319672,1748189446563,-431.70108844,0.00019998,2]
[362319674,1748189446573,-420.0,0.00019998,2]
[362319676,1748189446583,-420.0,0.00019998,2]
[362319678,1748189446592,-420.0,0.00019998,2]
[362319679,1748189446601,-420.0,0.00019998,2]
[362319681,1748189446611,-420.0,0.00019998,2]
[362319683,1748189446620,-420.0,0.00019998,2]
[362319685,1748189446629,-420.0,0.00019998,2]
[362319687,1748189446640,-420.0,0.00019998,2]
[362319689,1748189446649,-420.0,0.00019998,2]
[362319691,1748189446662,-506.81537064,0.00019998,2]
[362319693,1748189446672,-420.0,0.00019998,2]
[362319695,1748189446682,-420.0,0.00019998,2]
[362319697,1748189446691,-436.43259631,0.00019998,2]
[362319699,1748189446700,-420.0,0.00019998,2]
[362319701,1748189446708,-420.0,0.00019998,2]
[362319703,1748189446717,-420.0,0.00019998,2]
[362319704,1748189446726,-420.0,0.00019998,2]
[362319706,1748189446735,-420.0,0.00019998,2]
[362319708,1748189446745,-420.0,0.00019998,2]
[362319710,1748189446754,-420.0,0.00019998,2]
[362319712,1748189446764,-420.0,0.00019998,2]
[362319714,1748189446775,-424.26586412,0.00019998,2]
[362319716,1748189446784,-420.0,0.00019998,2]
[362319718,1748189446793,-500.0,0.00019998,2]
[362319720,1748189446802,-429.89055424,0.00019998,2]
[362319721,1748189446811,-430.62884639,0.00019998,2]
[362319723,1748189446821,-420.0,0.00019998,2]
[362319724,1748189446831,-456.70318383,0.00019998,2]
[362319725,1748189446840,-424.15001767,0.00019998,2]
[362319726,1748189446849,-426.83209444,0.00019998,2]
[362319727,1748189446859,-420.0,0.00019998,2]
[362319728,1748189446870,-420.0,0.00019998,2]
[362319729,1748189446879,-506.1538179,0.00019998,2]
[362319730,1748189446888,-420.0,0.00019998,2]
[362319731,1748189446898,-420.0,0.00019998,2]
[362319732,1748189446907,-420.0,0.00019998,2]
[362319733,1748189446917,-435.28015766,0.00019998,2]
[362319734,1748189446927,-420.0,0.00019998,2]
[362319735,1748189446936,-420.0,0.00019998,2]
[362319736,1748189446946,-428.84840305,0.00019998,2]
[362319737,1748189446955,-420.0,0.00019998,2]
[362319738,1748189446964,-420.0,0.00019998,2]
[362319739,1748189446974,-420.0,0.00019998,2]
[362319740,1748189446983,-420.0,0.00019998,2]
[362319741,1748189446992,-420.0,0.00019998,2]
[362319742,1748189447002,-420.0,0.00019998,2]
[362319743,1748189447011,-420.0,0.00019998,2]
[362319744,1748189447021,-420.0,0.00019998,2]
[362319745,1748189447031,-420.0,0.00019998,2]
[362319746,1748189447040,-420.0,0.00019998,2]
[362319747,1748189447049,-329.22864338,0.00019998,2]
[362319748,1748189447058,-500.0,0.00019999,2]
[362319749,1748189447069,-150.0,0.00019999,2]
[362319750,1748189447078,-204.54,0.00019999,2]
[362319751,1748189447088,-150.0,0.00019999,2]
[362319752,1748189447097,-420.0,0.00019999,2]
[362319753,1748189447107,-420.0,0.00019999,2]
[362319754,1748189447116,-420.0,0.00019999,2]
[362319755,1748189447125,-420.0,0.00019999,2]
[362319756,1748189447134,-420.0,0.00019999,2]
[362319757,1748189447143,-420.0,0.00019999,2]
[362319758,1748189447152,-420.0,0.00019999,2]
[362319759,1748189447161,-420.0,0.00019999,2]
[362319760,1748189447171,-420.0,0.00019999,2]
[362319761,1748189447181,-420.0,0.00019999,2]
[362319762,1748189447190,-420.0,0.00019999,2]
[362319763,1748189447199,-420.0,0.00019999,2]
[362319764,1748189447210,-420.0,0.00019999,2]
[362319765,1748189447219,-420.0,0.00019999,2]
[362319766,1748189447228,-420.0,0.00019999,2]
[362319767,1748189447238,-420.0,0.00019999,2]
[362319768,1748189447248,-420.0,0.00019999,2]
[362319769,1748189447257,-420.0,0.00019999,2]
[362319770,1748189447267,-193.6,0.00019999,2]
[362319771,1748189447277,-420.0,0.00019999,2]
[362319772,1748189447286,-420.0,0.00019999,2]
[362319773,1748189447296,-420.0,0.00019999,2]
[362319774,1748189447305,-150.0,0.00019999,2]
[362319775,1748189447315,-500.0,0.00019999,2]
[362319776,1748189447324,-170.2,0.00019999,2]
[362319777,1748189447333,-179.94035228,0.00019999,2]
[362319778,1748189447342,-420.0,0.00019999,2]
[362319779,1748189447351,-500.0,0.00019999,2]
[362319780,1748189447360,-500.0,0.00019999,2]
[362319781,1748189447369,-420.0,0.00019999,2]
[362319782,1748189447378,-427.30079503,0.00019999,2]
[362319783,1748189447388,-420.0,0.00019999,2]
[362319784,1748189447397,-420.0,0.00019999,2]
[362319785,1748189447407,-420.0,0.00019999,2]
[362319786,1748189447416,-426.2,0.00019999,2]
[362319787,1748189447430,-431.94867979,0.00019999,2]
[362319788,1748189447439,-429.66479471,0.00019999,2]
[362319789,1748189447449,-539.20049086,0.00019999,2]
[362319790,1748189447459,-420.0,0.00019999,2]
[362319791,1748189447468,-547.04,0.00019999,2]
[362319792,1748189447477,-427.5549772,0.00019999,2]
[362319793,1748189447487,-420.0,0.00019999,2]
[362319794,1748189447496,-420.0,0.00019999,2]
[362319795,1748189447505,-420.0,0.00019999,2]
[362319796,1748189447515,-420.0,0.00019999,2]
[362319797,1748189447525,-420.0,0.00019999,2]
[362319798,1748189447534,-420.0,0.00019999,2]
[362319799,1748189447544,-420.0,0.00019999,2]
[362319800,1748189447553,-420.0,0.00019999,2]
[362319801,1748189447563,-420.0,0.00019999,2]
[362319802,1748189447572,-420.0,0.00019999,2]
[362319803,1748189447581,-471.92,0.00019999,2]
[362319804,1748189447592,-420.0,0.00019999,2]
[362319805,1748189447602,-447.02565083,0.00019999,2]
[362319806,1748189447611,-420.0,0.00019999,2]
[362319807,1748189447621,-420.0,0.00019999,2]
[362319808,1748189447631,-420.0,0.00019999,2]
[362319809,1748189447641,-420.0,0.00019999,2]
[362319810,1748189447652,-553.0096721,0.00019999,2]
[362319811,1748189447663,-420.0,0.00019999,2]
[362319812,1748189447673,-150.0,0.0002,2]
[362319813,1748189447683,-190.103,0.0002,2]
[362319814,1748189447692,-199.189,0.0002,2]
[362319815,1748189447702,-278.676,0.0002,2]
[362319816,1748189447712,-632.0,0.0002,2]
[362319817,1748189447721,-798.0,0.0002,2]
[362319818,1748189447732,-485.076,0.0002,2]
[362319819,1748189447742,-523.0,0.0002,2]
[362319820,1748189447752,-47829.30428714,0.0002,2]
[362319821,1748189447983,-1195.0,0.0002,2]
[362319822,1748189447995,-9493.96653751,0.0002,2]
[362319823,1748189448006,-50232.82445164,0.0002,2]
[362319824,1748189448019,-74194.20692963,0.0002,2]
[362319825,1748189448030,-990.76763272,0.0002,2]
[362319826,1748189477139,250.0,0.00015,2]
[362319827,1748189479081,-221.01054539,0.00017,2]
[362319828,1748189481916,-78.98945461,0.00017,2]
[362319830,1748189550837,150.0,0.00026995,120]
[362319831,1748189610722,150.0,0.00025763,120]
[362319833,1748189734907,700.0,0.00027397,120]
[362319834,1748189735146,700.0,0.00027397,120]
[362319835,1748189735382,700.0,0.00027397,120]
[362319836,1748189735645,700.0,0.00027397,120]
[362319837,1748189735907,422.81313329,0.00027397,120]
[362319838,1748189746510,423.0010345,0.0002739,120]
[362319839,1748189951923,-162.42,0.00017081,2]
[362319840,1748189954536,-47.58,0.00017081,2]
[362319844,1748190283234,189.1,0.00025444,120]
[362319845,1748190307630,493.35,0.00013699,2]
[362319847,1748190337251,6831.21598261,9e-05,2]
[362319848,1748190402656,-176.73,0.0001663,2]
[362319849,1748190404102,-298.27,0.0001663,2]
[362319850,1748190405463,-190.54596244,0.0001663,2]
[362319852,1748190407471,-202.2297553,0.0001663,2]
[362319853,1748190408947,-92.43428226,0.0001663,2]
[362319854,1748190429139,-366.46579,0.0001799,2]
[362319855,1748190429160,-186.844777,0.00018081,2]
[362319856,1748190429182,-229.11236874,0.00018139,2]
[362319857,1748190430102,-20.88763126,0.00018139,2]
[362319858,1748190430125,-189.1,0.00018505,2]
[362319859,1748190430146,-200.0,0.00018505,2]
[362319860,1748190430169,-165.58,0.00018568,2]
[362319861,1748190430190,-70.56507572,0.00018568,2]
[362319862,1748190449108,-2533.30189249,0.00018568,2]
[362319863,1748190453110,-1526.03310601,0.00018568,2]
[362319882,1748190631712,-300.0,0.00018452,2]
[362319883,1748190631722,-317.38700878,0.00018452,2]
[362319884,1748190631822,-882.61299122,0.00018452,2]
[362319885,1748190631832,-697.39488525,0.00018453,2]
[362319886,1748190631876,-12182.09511475,0.00018453,2]
[362319887,1748190631886,-4000.0,0.00018476,2]
[362319888,1748190631896,-615.91,0.00018487,2]
[362319889,1748190631905,-486.12417781,0.00018539,2]
[362319890,1748190631917,-385.11969402,0.00018539,2]
[362319891,1748190631930,-2996.38085226,0.00018539,2]
[362319892,1748190632204,-18313.51369495,0.00018539,2]
[362319893,1748190632216,-1718.86158096,0.00018539,2]
[362319894,1748190632226,-200.0,0.00018549,2]
[362319895,1748190632236,-97.44661788,0.0001856,2]
[362319896,1748190632247,-3603.29758592,0.0001856,2]
[362319922,1748190637642,-498.4257962,0.0001856,2]
[362319923,1748190637652,-2132.36992578,0.00018568,2]
[362319924,1748190637661,-200.0,0.0001859,2]
[362319925,1748190637671,-1852.42,0.00018625,2]
[362319926,1748190637680,-567.92,0.00018657,2]
[362319927,1748190637689,-1000.0,0.00018679,2]
[362319928,1748190637699,-2425.47,0.00018695,2]
[362319929,1748190637708,-200.0,0.00018711,2]
[362319930,1748190637717,-320.0,0.00018722,2]
[362319931,1748190637727,-200.0,0.00018723,2]
[362319932,1748190637736,-2374.97,0.00018724,2]
[362319933,1748190637745,-499.99,0.00018724,2]
[362319934,1748190637755,-1409.56,0.00018724,2]
[362319935,1748190637764,-150.0,0.00018802,2]
[362319936,1748190637773,-1031.03,0.00018802,2]
[362319937,1748190637782,-866.07,0.00018802,2]
[362319938,1748190637791,-12360.68971028,0.00018822,2]
[362319939,1748190637801,-4246.79,0.00018831,2]
[362319940,1748190637810,-999.99,0.00018831,2]
[362319941,1748190637819,-9999.99,0.00018831,2]
[362319942,1748190637828,-327.27,0.00018831,2]
[362319943,1748190637838,-173.24,0.00018831,2]
[362319944,1748190637847,-2686.02,0.00018831,2]
[362319945,1748190637857,-264.78,0.00018831,2]
[362319946,1748190637866,-150.99,0.00018831,2]
[362319947,1748190637875,-9999.99,0.00018831,2]
[362319948,1748190637885,-150.99,0.00018831,2]
[362319949,1748190637894,-960.21,0.00018894,2]
[362319950,1748190637903,-894.27,0.00018902,2]
[362319951,1748190637913,-500.0,0.00018933,2]
[362319952,1748190637922,-250.0,0.0001898,2]
[362319953,1748190637931,-186.844777,0.00018986,2]
[362319954,1748190637941,-10662.79,0.00018987,2]
[362319955,1748190637951,-1806.62,0.00018987,2]
[362319956,1748190637960,-151.0,0.00018999,2]
[362319957,1748190637969,-668.65185757,0.00018999,2]
[362319958,1748190637978,-207.4,0.00018999,2]
[362319959,1748190637988,-350.0,0.00019,2]
[362319960,1748190637997,-3183.51,0.00019012,2]
[362319961,1748190638007,-188.9,0.00019029,2]
[362319962,1748190638016,-150.0,0.00019066,2]
[362319963,1748190638026,-300.0,0.000191,6]
[362319964,1748190638036,-600.0,0.000192,7]
[362319965,1748190638045,-1000.0,0.000193,7]
[362319966,1748190638054,-1300.0,0.000194,7]